bitfinex/quotes_ETHUSD_20250623
["timestamp","ask_amount","ask_price","bid_price","bid_amount"]
[1750703353680,0.13655697,2290.4,2290.2,7.967]
[1750703353877,1.04510051,2290.9,2290.1,4.40656395]
[1750703354068,4.64819147,2290.8,2290.2,4.36641759]
[1750703354379,1.18168142,2290.7,2290.1,4.40656982]
[1750703354541,1.1816803,2290.6,2290.2,12.33442447]
[1750703354738,1.1816803,2290.5,2290.4,4.36604959]
[1750703355064,0.13657979,2290.5,2290.4,4.36604959]
[1750703356341,0.13657979,2290.5,2290.3,4.36623605]
[1750703356674,1.04510051,2290.7,2290.4,12.33202788]
[1750703356881,1.18166921,2290.6,2290.4,7.966]
[1750703357182,0.1365687,2290.5,2290.1,0.04]
[1750703357478,1.04510051,2290.8,2290.3,7.956]
[1750703357651,1.04510051,2290.7,2290.3,12.32208913]
[1750703357979,0.7265,2290.5,2290.1,4.40654435]
[1750703358280,1.77160051,2290.8,2290.1,7.996]
[1750703358484,1.04510051,2290.7,2290.4,4.36592981]
[1750703358659,1.04510051,2290.7,2290.4,7.97]
[1750703358978,0.13657296,2290.6,2290.4,7.97]
[1750703359181,0.13656658,2290.5,2290.4,7.97]
[1750703359379,0.13656658,2290.5,2290.4,12.33604959]
[1750703359587,0.13656658,2290.5,2290.4,7.97]
[1750703361245,0.13656658,2290.5,2290.2,4.36639064]
[1750703361246,0.1365745,2290.5,2290.2,4.36639064]
[1750703361442,0.1365745,2290.4,2290.3,7.969]
[1750703361648,0.13657808,2290.4,2290.3,12.33524023]
[1750703362073,0.13657808,2290.4,2290.3,7.969]
[1750703362451,3.40817123,2290.7,2290.3,7.969]
[1750703362658,1.59622075,2290.6,2290.3,7.969]
[1750703362864,1.18275363,2290.5,2290.3,7.969]
[1750703363079,0.1365824,2290.4,2290.3,12.33523041]
[1750703363241,1.04617123,2290.8,2290.3,9.2024]
[1750703363446,1.18273631,2290.7,2290.6,4.36566838]
[1750703363648,1.18273051,2290.7,2290.6,12.32166838]
[1750703363871,1.18273019,2290.7,2290.6,12.32166838]
[1750703364378,0.13655896,2290.7,2290.6,12.32166838]
[1750703364579,1.04617123,2290.9,2290.7,4.36539205]
[1750703364810,3.0885,2291.1,2290.5,4.36571877]
[1750703364811,1.04617123,2290.8,2290.5,4.36571877]
[1750703364956,3.0885,2291.1,2290.7,7.956]
[1750703365157,1.49166933,2291.0,2290.6,7.956]
[1750703365361,1.18281933,2290.9,2290.6,7.956]
[1750703365562,1.04626132,2290.8,2290.6,7.956]
[1750703365762,0.13656036,2290.7,2290.6,7.956]
[1750703366171,1.04627545,2290.7,2290.6,7.956]
[1750703366486,1.18284108,2290.7,2290.2,4.36634288]
[1750703366686,1.18284108,2290.6,2290.3,7.955]
[1750703366879,0.13656794,2290.5,2290.3,7.955]
[1750703367081,1.04644747,2290.9,2290.3,7.955]
[1750703367282,2.10455192,2290.8,2290.3,7.955]
[1750703367484,1.04644747,2290.7,2290.3,7.955]
[1750703367687,1.18302076,2290.6,2290.3,7.955]
[1750703367882,0.92152975,2290.8,2290.1,14.40652136]
[1750703368193,0.7265,2290.5,2290.2,7.955]
[1750703368394,0.13657459,2290.4,2290.2,12.32140089]
[1750703368689,1.64802975,2290.8,2290.2,12.32131016]
[1750703368987,1.18310917,2290.7,2290.4,4.36591471]
[1750703369195,1.1831043,2290.6,2290.4,4.36595008]
[1750703369355,0.13657043,2290.5,2290.4,4.36595008]
[1750703369547,3.0885,2290.8,2290.4,4.36595008]
[1750703369548,1.04650071,2290.7,2290.4,4.36595008]
[1750703369753,1.18306536,2290.6,2290.3,4.36613883]
[1750703369992,1.18306536,2290.5,2290.3,4.36612416]
[1750703370202,3.0885,2290.8,2290.4,4.36604959]
[1750703370485,1.183091,2290.7,2290.4,4.36604959]
[1750703370663,1.183091,2290.6,2290.4,4.36604959]
[1750703370861,1.183091,2290.5,2290.4,4.36604959]
[1750703371387,1.183091,2290.5,2290.3,4.36608413]
[1750703371576,0.13656925,2290.4,2290.1,0.04]
[1750703371888,1.04672832,2290.7,2290.1,0.04]
[1750703372053,3.0885,2290.8,2290.1,0.04]
[1750703372054,1.59682679,2290.6,2290.1,4.4065174]
[1750703372254,1.18330396,2290.5,2290.1,0.04]
[1750703372478,0.7265,2290.3,2290.1,0.04]
[1750703372684,1.18331956,2290.2,2290.1,0.04]
[1750703372898,3.54531956,2290.2,2290.1,0.04]
[1750703373120,3.97252214,2290.2,2290.1,0.04]
[1750703373322,3.97252313,2290.2,2290.1,0.04]
[1750703373522,3.97252313,2290.2,2290.0,10.0]
[1750703373523,0.7265,2290.1,2290.0,9.87356646]
[1750703373706,0.7265,2290.1,2289.1,0.04]
[1750703373707,0.7265,2289.8,2289.1,0.04]
[1750703373910,0.55,2289.6,2289.1,0.04]
[1750703374218,0.7265,2289.4,2289.1,0.04]
[1750703374392,1.18339317,2289.3,2289.1,0.04]
[1750703374590,13.54539317,2289.2,2289.1,0.04]
[1750703374818,16.83537545,2289.2,2289.1,0.04]
[1750703375026,16.83537545,2289.2,2289.1,4.40852911]
[1750703375027,1.18340784,2289.2,2289.1,4.40852911]
[1750703375184,0.55,2289.5,2289.1,0.04]
[1750703375386,1.18338458,2289.4,2289.1,0.04]
[1750703375584,1.18338458,2289.3,2289.1,0.04]
[1750703375784,14.82188458,2289.2,2289.1,0.04]
[1750703376015,18.308616,2289.2,2289.1,0.04]
[1750703376220,18.308616,2289.2,2288.1,0.04]
[1750703376221,10.55,2289.1,2288.1,0.04]
[1750703376420,1.2765,2288.2,2288.1,0.04]
[1750703376586,0.13671021,2288.2,2288.1,0.04]
[1750703376924,3.48673142,2289.2,2288.3,1.2718]
[1750703376925,10.5,2288.9,2288.3,1.2718]
[1750703377089,0.13669829,2288.8,2288.3,1.2718]
[1750703377287,0.13669829,2288.8,2288.4,4.36982137]
[1750703377527,0.7265,2289.0,2288.4,4.3698654]
[1750703377692,1.76633638,2289.4,2288.6,4.36943854]
[1750703377891,0.13666439,2289.3,2288.9,4.36874187]
[1750703378103,10.492,2289.5,2289.0,4.3686877]
[1750703378299,0.13665339,2289.4,2289.0,4.36864092]
[1750703378501,10.492,2289.5,2288.9,1.2791]
[1750703378788,0.7265,2289.7,2289.1,4.36844486]
[1750703379015,0.1366471,2289.6,2288.9,1.2791]
[1750703379186,0.1366471,2289.6,2289.1,4.36851767]
[1750703379392,10.7265,2289.7,2289.1,4.36851767]
[1750703379588,0.136652,2289.6,2288.9,4.36883127]
[1750703379788,0.13665935,2289.5,2288.8,4.36904108]
[1750703380004,12.03475,2289.7,2288.8,4.36899068]
[1750703380322,0.7265,2289.3,2288.3,1.2182]
[1750703380523,12.49267327,2289.2,2288.3,5.58812111]
[1750703380734,1.4585906,2289.1,2288.3,5.58812111]
[1750703380929,10.0,2289.2,2288.7,4.36910567]
[1750703381128,10.0,2289.2,2288.6,4.3693968]
[1750703381330,0.7265,2289.6,2288.6,7.982]
[1750703381488,0.7265,2289.6,2289.0,4.36861972]
[1750703381687,10.7265,2289.6,2289.1,4.36842106]
[1750703381887,13.03485,2289.6,2289.1,4.36834583]
[1750703382129,0.13664409,2289.5,2288.7,5.53677055]
[1750703382346,0.7265,2288.7,2287.7,0.2236657]
[1750703382546,0.7265,2288.0,2287.7,0.2236657]
[1750703382843,2.357,2287.9,2287.7,0.2236657]
[1750703383008,12.357,2287.9,2287.7,0.2236657]
[1750703383210,11.00367244,2287.9,2287.7,0.2236657]
[1750703383523,12.357,2287.9,2287.7,0.2236657]
[1750703384120,0.55,2287.8,2287.7,0.2236657]
[1750703384343,1.2765,2287.8,2287.7,0.2236657]
[1750703384754,21.5917052,2287.8,2287.7,0.2236657]
[1750703385054,26.59535407,2287.8,2287.7,0.2236657]
[1750703385420,26.59535353,2287.8,2287.7,0.2236657]
[1750703385613,38.68478319,2287.8,2287.7,0.2236657]
[1750703385838,38.54800219,2287.8,2287.7,0.2236657]
[1750703386221,0.55,2287.6,2287.1,0.04]
[1750703386421,2.357,2287.5,2287.1,0.04]
[1750703386633,0.55,2287.6,2287.1,0.04]
[1750703386821,2.357,2287.6,2287.1,0.04]
[1750703387249,2.358,2287.7,2287.2,1.2287]
[1750703387447,2.8608,2287.9,2287.2,1.2287]
[1750703387657,2.358,2287.9,2287.3,4.37196694]
[1750703387962,2.358,2287.9,2287.4,4.37164806]
[1750703388267,2.358,2287.9,2287.3,4.37188744]
[1750703388465,2.358,2287.9,2287.4,4.37166958]
[1750703388635,2.358,2287.9,2287.2,1.79281997]
[1750703388825,2.358,2287.9,2287.4,4.37160024]
[1750703389025,2.358,2287.9,2287.5,4.37155301]
[1750703389236,2.358,2287.9,2287.2,1.2287]
[1750703389425,2.358,2287.9,2287.5,4.37156866]
[1750703389968,2.358,2287.9,2287.2,1.2287]
[1750703389969,12.358,2288.2,2287.6,4.37138098]
[1750703390125,10.0,2288.2,2287.7,4.37111522]
[1750703390327,11.28608,2288.2,2287.7,4.37112825]
[1750703390725,2.358,2288.4,2287.2,1.2287]
[1750703390942,2.358,2288.4,2287.4,4.37177581]
[1750703391170,2.358,2288.4,2287.2,1.2287]
[1750703391171,2.358,2288.4,2288.0,4.3706067]
[1750703391359,2.358,2288.4,2287.3,1.2554]
[1750703391360,13.3558,2288.6,2287.9,4.37074944]
[1750703391544,10.0,2288.5,2287.5,8.073]
[1750703391747,10.0,2288.5,2287.9,4.37073479]
[1750703391945,10.0,2288.5,2287.8,4.37085257]
[1750703392171,10.0,2288.5,2287.6,8.8733]
[1750703392343,10.0,2288.5,2287.9,4.37066568]
[1750703392540,10.0,2288.5,2287.6,0.8073]
[1750703392775,10.0,2288.5,2287.8,4.3708614]
[1750703392776,12.33558,2288.5,2287.8,4.3708614]
[1750703393255,12.33558,2288.5,2287.9,4.37073811]
[1750703393422,10.0,2288.5,2287.8,4.37092025]
[1750703393627,10.0,2288.5,2287.7,4.37108906]
[1750703394028,10.0,2288.5,2287.8,4.37098199]
[1750703394256,10.0,2288.5,2287.6,5.17863133]
[1750703394455,12.33558,2288.5,2287.7,4.37118003]
[1750703395039,12.33558,2288.5,2287.6,8.8693]
[1750703395358,10.0,2288.5,2287.7,1.1791]
[1750703395560,10.0,2288.5,2287.8,4.3709235]
[1750703395785,10.0,2288.5,2287.7,5.55028727]
[1750703396272,10.0,2288.5,2287.4,5.55076891]
[1750703396273,0.5028,2288.4,2287.4,5.55076891]
[1750703396473,0.5028,2288.4,2287.4,5.55079364]
[1750703396634,0.5028,2288.4,2287.6,4.3713911]
[1750703396635,1.05028,2288.3,2287.6,4.3713911]
[1750703396838,1.05028,2288.3,2287.6,4.37130713]
[1750703397058,1.05028,2288.3,2287.5,4.37147892]
[1750703397572,1.05028,2288.3,2287.5,4.37157475]
[1750703397786,1.05028,2288.3,2287.6,4.37136911]
[1750703397951,1.05028,2288.3,2287.5,4.37150933]
[1750703398345,1.05028,2288.3,2287.4,5.55077368]
[1750703398546,1.05028,2288.3,2287.5,4.37148457]
[1750703398747,1.05028,2288.3,2287.4,5.5507725]
[1750703398945,1.05028,2288.3,2287.3,4.37187767]
[1750703399169,1.05028,2288.3,2287.4,4.37175967]
[1750703399370,0.25876312,2288.2,2287.4,4.37166298]
[1750703400243,0.25876312,2288.2,2287.6,4.37128898]
[1750703400438,0.25876312,2288.2,2287.3,12.4199353]
[1750703400681,1.53735119,2288.4,2287.3,8.048]
[1750703400881,1.53735119,2288.4,2287.1,1.222]
[1750703400882,0.5028,2288.4,2287.5,4.37148222]
[1750703401095,0.13673269,2288.3,2287.5,4.37148222]
[1750703401301,0.13673269,2288.3,2287.6,4.37138584]
[1750703401577,0.13673269,2288.3,2287.5,12.41247507]
[1750703401801,1.53994108,2288.3,2287.5,12.41249652]
[1750703401947,1.53994108,2288.3,2287.1,5.62164896]
[1750703401948,1.40320839,2288.3,2287.1,1.2493]
[1750703402142,1.40320839,2288.3,2287.4,4.37168357]
[1750703402348,1.67408596,2288.2,2287.2,8.041]
[1750703402567,1.17128596,2288.1,2287.1,0.04]
[1750703402780,11.0528,2287.9,2287.1,0.04]
[1750703402982,0.5028,2287.7,2287.1,0.04]
[1750703403285,13.26076474,2287.6,2287.1,0.04]
[1750703403614,0.13678389,2287.5,2287.4,4.37177581]
[1750703403917,0.13678389,2287.5,2287.3,4.37196694]
[1750703403918,1.04008676,2288.6,2287.6,1.2702]
[1750703404069,0.5028,2288.7,2287.7,4.37120251]
[1750703404265,1.04008676,2288.9,2288.0,5.56992937]
[1750703404482,1.04008676,2289.0,2288.0,1.1993]
[1750703404688,0.5028,2289.1,2288.9,4.36891083]
[1750703404908,1.04008676,2289.1,2288.9,4.36882643]
[1750703405111,0.5028,2289.4,2288.4,1.1884]
[1750703405280,1.04008676,2289.3,2288.4,1.1884]
[1750703405480,1.04008676,2289.2,2288.6,4.36939677]
[1750703405669,1.04008676,2289.3,2288.7,4.36927308]
[1750703405870,1.04008676,2289.3,2288.6,4.36941969]
[1750703405871,1.04008676,2289.2,2288.6,4.36941969]
[1750703406071,1.04008676,2289.3,2288.4,9.2444]
[1750703406322,10.5028,2289.1,2288.2,8.052]
[1750703406613,1.04008676,2289.0,2288.2,12.42212735]
[1750703406783,0.5028,2288.8,2287.9,4.37072517]
[1750703406982,1.04008676,2288.7,2288.0,4.37061817]
[1750703407181,1.04008676,2288.6,2288.0,4.3704854]
[1750703407481,1.04008676,2288.5,2287.9,4.37071869]
[1750703407682,1.04008676,2288.7,2287.9,1.05748908]
[1750703407884,1.04008676,2288.6,2288.0,4.37053276]
[1750703408198,1.04008676,2288.7,2287.8,8.61514025]
[1750703408407,1.04008676,2288.6,2287.8,8.051]
[1750703408584,10.0,2288.6,2288.1,4.37028489]
[1750703408913,1.04008676,2288.6,2288.5,4.36967445]
[1750703409096,1.54288676,2289.1,2287.7,1.192]
[1750703409272,1.04046767,2289.0,2288.4,4.36977309]
[1750703409473,1.04046767,2288.9,2288.7,4.36919099]
[1750703409690,1.04046767,2288.9,2288.4,5.56175922]
[1750703409903,1.04046767,2288.9,2288.5,4.3695145]
[1750703410117,1.04046767,2288.9,2288.6,4.36947478]
[1750703410727,1.04046767,2288.9,2288.8,4.36910171]
[1750703411036,0.26771465,2289.9,2288.8,1.192]
[1750703411037,1.04046767,2289.7,2288.8,1.192]
[1750703411215,1.04046767,2289.8,2289.4,4.36784165]
[1750703411419,1.04046767,2289.7,2289.0,4.36871941]
[1750703411592,1.04046767,2289.8,2289.7,4.36738437]
[1750703411787,0.04,2289.9,2289.1,1.48187194]
[1750703412023,0.04,2289.9,2289.8,4.36719364]
[1750703412599,0.04,2290.9,2290.6,4.36566838]
[1750703412847,0.04,2290.9,2290.5,8.049]
[1750703413030,0.04,2290.9,2290.8,4.36528723]
[1750703413547,0.04,2290.9,2290.8,8.049]
[1750703413764,0.04,2290.9,2290.8,12.41428723]
[1750703413904,0.04,2290.9,2290.6,1.2199]
[1750703414109,0.04,2290.9,2290.4,8.044]
[1750703414646,0.04,2290.9,2290.4,8.66278108]
[1750703414942,0.04,2290.9,2290.8,4.36528723]
[1750703415644,0.04,2290.9,2290.0,1.2199]
[1750703415850,0.04,2290.9,2290.3,4.36624023]
[1750703416152,12.08942966,2290.6,2289.6,5.57621817]
[1750703416352,0.5428,2290.4,2289.6,4.36745453]
[1750703416510,0.5428,2290.4,2289.6,4.36746159]
[1750703416704,0.5428,2290.4,2289.5,4.36775169]
[1750703416705,0.5428,2290.4,2289.4,8.048]
[1750703416940,0.5428,2290.4,2289.4,12.41585716]
[1750703417149,0.55,2290.3,2289.2,1.2087]
[1750703417362,2.398,2290.2,2289.3,8.042]
[1750703417569,2.398,2290.2,2289.2,1.47775719]
[1750703417570,10.5428,2290.4,2289.8,4.36709746]
[1750703417766,10.5428,2290.4,2289.6,4.36744863]
[1750703417767,10.5428,2290.4,2289.7,4.36728689]
[1750703418065,10.5428,2290.4,2289.8,4.36707431]
[1750703418366,1.1751743,2290.3,2289.9,4.3668776]
[1750703418571,0.5428,2290.4,2289.8,4.36708606]
[1750703418736,0.5428,2290.4,2289.7,4.36738437]
[1750703418931,0.5428,2290.4,2289.8,4.36719364]
[1750703419569,0.5428,2290.4,2289.7,4.36729681]
[1750703419770,0.5428,2290.4,2289.7,4.36720072]
[1750703419971,0.5428,2290.4,2289.6,8.045]
[1750703420134,0.5428,2290.4,2289.2,1.47775719]
[1750703420338,1.1905,2290.0,2289.1,8.038]
[1750703420562,0.6405,2290.0,2289.3,4.36803281]
[1750703420766,0.6405,2290.0,2289.4,4.36787305]
[1750703421348,0.6405,2290.0,2289.4,4.36787698]
[1750703421670,0.6405,2290.0,2289.5,4.36776504]
[1750703421850,1.70455,2290.0,2289.4,4.367935]
[1750703422169,1.70455,2290.0,2289.4,4.36784635]
[1750703422378,1.70455,2290.0,2289.6,4.36744217]
[1750703422574,1.70455,2290.0,2289.4,4.36779316]
[1750703422740,1.70455,2290.0,2289.5,4.36760229]
[1750703422942,1.70455,2290.0,2289.4,4.36794035]
[1750703423365,1.70455,2290.0,2289.5,4.36775419]
[1750703423565,1.70455,2290.0,2289.4,4.36785508]
[1750703423839,1.70455,2290.0,2289.5,4.36775259]
[1750703424174,0.6405,2290.0,2289.4,4.36795666]
[1750703424343,0.6405,2290.4,2289.5,2.398]
[1750703424545,0.6405,2290.4,2290.1,4.36654395]
[1750703424844,0.6405,2290.4,2290.0,4.36669799]
[1750703425060,0.6405,2290.4,2290.0,4.36672744]
[1750703425679,0.6405,2290.4,2290.0,4.36666902]
[1750703426065,0.6405,2290.4,2290.1,4.36660046]
[1750703426254,0.6405,2290.4,2290.0,4.36681213]
[1750703426587,0.6405,2290.4,2290.0,4.36673543]
[1750703426790,0.6405,2290.4,2290.1,4.36661465]
[1750703427261,0.6405,2290.4,2290.1,4.36661705]
[1750703427580,0.6405,2290.4,2290.1,8.003]
[1750703427884,0.6405,2290.7,2290.2,4.36641393]
[1750703428086,0.6405,2290.7,2290.1,8.003]
[1750703428087,1.16746641,2290.6,2290.1,8.003]
[1750703428278,1.16746641,2290.6,2290.1,12.36959992]
[1750703428456,1.16746641,2290.6,2290.1,8.003]
[1750703428658,1.16746641,2290.6,2290.0,4.36676777]
[1750703428870,1.16746641,2290.6,2290.1,4.36659296]
[1750703429077,1.16746641,2290.6,2290.2,7.987]
[1750703429279,1.16746641,2290.6,2290.2,12.35341309]
[1750703429610,14.52742966,2290.9,2290.2,7.987]
[1750703429611,0.04,2290.9,2290.2,7.987]
[1750703430182,0.04,2290.9,2290.4,4.36591961]
[1750703430386,0.04,2290.9,2290.4,4.36588322]
[1750703430590,0.04,2290.9,2290.0,1.2952]
[1750703430887,10.0,2290.8,2290.1,7.975]
[1750703431067,2.21294297,2290.7,2290.1,7.975]
[1750703431668,2.21294297,2290.7,2290.1,12.34161924]
[1750703431865,10.04,2290.9,2290.3,4.36613118]
[1750703432193,10.04,2290.9,2290.4,4.36601835]
[1750703432359,10.04,2290.9,2290.2,4.36631229]
[1750703432870,10.04,2290.9,2290.4,4.36592376]
[1750703433388,10.04,2290.9,2289.7,4.36738437]
[1750703433581,1.17161859,2290.8,2290.2,4.36642997]
[1750703433902,11.07568587,2290.9,2290.3,12.33611989]
[1750703434189,11.07568587,2290.9,2289.5,1.1837]
[1750703434190,0.6405,2290.8,2289.5,1.1837]
[1750703434493,0.6405,2290.8,2289.9,4.36697907]
[1750703434494,10.0,2290.6,2289.9,4.36697907]
[1750703434700,11.03792137,2290.6,2289.8,4.36707266]
[1750703435009,1.03792137,2290.6,2290.2,4.36634079]
[1750703435207,0.6405,2290.8,2290.2,4.36634079]
[1750703435408,1.17188808,2290.7,2290.2,4.36634079]
[1750703435596,1.67888076,2290.8,2290.4,4.36597516]
[1750703435900,0.6405,2290.8,2290.3,4.36620736]
[1750703436097,11.07838076,2290.9,2289.8,7.969]
[1750703436098,0.6405,2290.3,2289.8,7.969]
[1750703436261,1.67888076,2290.3,2289.9,4.36700013]
[1750703436458,0.6405,2290.3,2289.9,4.36700013]
[1750703436699,0.6405,2290.3,2289.8,12.33608457]
[1750703436894,0.6405,2290.3,2289.8,9.63933729]
[1750703437075,0.6405,2290.3,2290.0,4.3667991]
[1750703437257,0.6405,2290.3,2289.9,4.36689449]
[1750703437873,0.6405,2290.3,2290.0,4.3667989]
[1750703438074,0.6405,2290.3,2290.0,12.3357989]
[1750703438469,0.6405,2290.3,2290.0,12.33570538]
[1750703438698,1.03838076,2290.2,2290.0,12.33570538]
[1750703438862,1.03838076,2290.2,2290.1,4.36662154]
[1750703439062,1.03838076,2290.6,2290.0,1.67025508]
[1750703439269,1.03838076,2290.5,2290.2,4.36640705]
[1750703439494,1.03838076,2290.6,2290.1,12.33550228]
[1750703439796,0.6405,2290.7,2290.1,7.969]
[1750703439995,0.04,2290.9,2290.1,7.969]
[1750703440164,1.04250064,2290.8,2290.6,4.36558716]
[1750703440359,1.04250064,2290.7,2290.6,7.969]
[1750703440989,1.04250064,2290.7,2290.6,12.33466838]
[1750703441296,1.04366508,2290.7,2290.6,7.969]
[1750703442298,1.04366508,2290.7,2290.3,4.36615056]
[1750703442299,1.04366508,2290.7,2290.3,4.36613982]
[1750703442497,1.04366508,2290.6,2290.4,12.33403631]
[1750703442700,0.04,2290.9,2290.4,12.33403631]
[1750703443002,1.04375188,2290.8,2290.5,7.968]
[1750703443201,1.04375188,2290.7,2290.5,7.968]
[1750703443505,1.04375188,2290.6,2290.5,12.33385898]
[1750703443704,1.04375188,2290.6,2290.5,14.00384982]
[1750703443914,0.04,2290.9,2290.8,4.36528723]
[1750703444365,0.04,2290.9,2290.8,12.33228723]
[1750703445368,0.04,2290.9,2290.8,4.36528723]
[1750703446003,0.04,2290.9,2290.8,12.33228723]
[1750703446202,0.04,2290.9,2290.8,14.23725884]
[1750703446880,1.04284702,2291.5,2291.4,5.60174419]
[1750703447088,0.04,2291.9,2291.6,4.36364474]
[1750703447386,1.0421142,2291.8,2291.7,7.966]
[1750703447923,0.04,2291.9,2291.7,12.32957289]
[1750703448091,1.0821142,2291.9,2291.8,4.36338249]
[1750703448287,0.04,2291.9,2291.8,4.36338249]
[1750703448487,0.04,2291.9,2291.8,6.03267803]
[1750703448687,1.0421142,2292.7,2292.0,1.2675]
[1750703448995,0.04,2292.9,2292.8,4.36147941]
[1750703449199,0.04,2292.9,2292.8,12.32747941]
[1750703449500,0.04,2292.9,2292.8,12.35247941]
[1750703450024,0.04,2292.9,2292.8,4.36147941]
[1750703450229,0.04,2292.9,2292.8,12.35247941]
[1750703453072,1.0821142,2293.9,2293.6,1.3116]
[1750703453213,1.0821142,2293.9,2293.1,1.3116]
[1750703453214,0.04,2293.9,2293.1,1.3116]
[1750703453408,12.77242966,2293.8,2292.8,4.36147941]
[1750703453612,11.28124297,2293.7,2293.0,4.36108285]
[1750703453922,11.28124297,2293.7,2292.9,12.33818988]
[1750703454121,0.683,2293.6,2293.0,7.975]
[1750703454322,0.683,2293.6,2293.1,7.973]
[1750703454658,0.683,2293.6,2293.1,12.33373974]
[1750703454948,0.04,2293.9,2293.4,4.36033623]
[1750703455256,0.04,2293.9,2293.5,7.987]
[1750703455472,0.04,2293.9,2293.1,1.2436]
[1750703455473,0.04,2293.9,2293.4,4.36020084]
[1750703455616,0.683,2293.3,2292.2,4.36262106]
[1750703455815,0.683,2293.3,2292.5,4.36195382]
[1750703456015,0.683,2293.3,2292.6,4.36185722]
[1750703456016,1.0683,2293.2,2292.6,4.36185722]
[1750703456348,1.0683,2293.2,2292.7,7.999]
[1750703456765,0.683,2294.0,2292.8,3.6036]
[1750703457055,0.683,2294.0,2293.2,4.36053359]
[1750703457347,0.683,2294.0,2293.5,4.35996139]
[1750703457516,0.683,2294.0,2293.6,4.35982733]
[1750703457734,0.683,2294.0,2293.8,4.35957799]
[1750703457934,0.683,2294.0,2293.7,12.36162066]
[1750703458166,0.683,2294.0,2293.8,4.35957799]
[1750703458573,0.2236657,2294.5,2294.0,4.3591979]
[1750703458762,0.04,2294.9,2294.5,0.55]
[1750703458956,0.04,2294.9,2294.6,8.092]
[1750703459269,0.04,2294.9,2294.8,4.35767822]
[1750703460533,0.04,2294.9,2294.1,0.55]
[1750703460777,0.04,2294.9,2294.5,4.35824798]
[1750703460957,0.04,2294.9,2294.7,4.35781777]
[1750703461156,0.04,2294.9,2294.8,12.44067822]
[1750703461971,0.04,2294.9,2294.8,12.43667822]
[1750703462136,0.04,2294.9,2294.1,0.55]
[1750703462474,10.04,2294.9,2294.2,12.43271975]
[1750703462769,0.683,2294.7,2293.5,1.2036]
[1750703462972,10.0,2294.1,2293.3,8.087]
[1750703463161,10.0,2293.9,2293.2,4.3606222]
[1750703463483,10.0,2293.9,2293.1,12.45088159]
[1750703463484,0.683,2294.0,2293.1,12.45084589]
[1750703463688,0.683,2294.0,2293.5,4.36004608]
[1750703463838,0.683,2294.0,2293.6,12.45190601]
[1750703464032,0.683,2294.0,2293.6,4.35990601]
[1750703464336,0.683,2294.0,2293.7,8.089]
[1750703464577,0.683,2294.0,2293.7,8.087]
[1750703466041,0.683,2294.0,2293.4,8.087]
[1750703466436,0.683,2294.0,2293.4,12.44725804]
[1750703466636,0.2445,2294.0,2293.4,12.44725804]
[1750703466941,0.2445,2294.0,2292.8,1.2036]
[1750703466942,10.0,2293.7,2292.5,1.1875]
[1750703467282,22.08942966,2293.5,2292.6,8.088]
[1750703467782,22.08942966,2293.5,2292.6,12.81385632]
[1750703467940,22.08942966,2293.5,2292.6,12.81397742]
[1750703468145,22.08942966,2293.5,2292.7,0.36410459]
[1750703468344,0.55,2293.4,2292.7,0.36410459]
[1750703468586,12.26394297,2293.3,2292.7,0.36410459]
[1750703469287,10.0,2293.1,2292.7,0.36410459]
[1750703469593,0.2445,2292.9,2292.7,0.36410459]
[1750703470156,22.33392966,2292.9,2292.7,0.36410459]
[1750703470790,0.7945,2292.8,2292.7,0.36410459]
[1750703471019,4.35604078,2292.8,2292.7,0.36410459]
[1750703471347,14.35604078,2292.8,2292.7,0.36410459]
[1750703471573,10.2445,2292.7,2292.1,0.04]
[1750703471757,0.2445,2292.2,2292.1,0.04]
[1750703472096,12.6705,2292.2,2292.1,0.04]
[1750703472414,16.14649297,2292.2,2292.1,0.04]
[1750703472742,10.2445,2292.2,2292.1,0.04]
[1750703473585,22.33392966,2292.2,2292.1,0.04]
[1750703473917,11.27779331,2292.2,2292.1,0.04]
[1750703474314,11.82779331,2292.2,2292.1,0.04]
[1750703474683,11.27779331,2292.2,2292.1,0.04]
[1750703474893,14.16451561,2292.2,2292.1,0.04]
[1750703475505,16.59051561,2292.2,2292.1,0.04]
[1750703475890,16.04051561,2292.2,2292.1,0.04]
[1750703476180,16.59051561,2292.2,2292.1,0.04]
[1750703476381,25.01888244,2292.2,2292.1,0.04]
[1750703476622,14.52788244,2292.2,2292.1,0.04]
[1750703476787,11.64116014,2292.2,2292.1,0.04]
[1750703476992,1.64116014,2292.2,2292.1,0.04]
[1750703477318,0.60786683,2292.2,2292.1,0.04]
[1750703477525,1.15786683,2292.2,2292.1,0.04]
[1750703477678,3.48259648,2292.2,2292.1,0.04]
[1750703477881,1.03384955,2292.2,2292.1,0.04]
[1750703478188,0.2484,2292.5,2292.1,0.04]
[1750703478806,1.03398573,2292.8,2292.1,0.04]
[1750703479016,0.2484,2293.4,2292.7,1.3026]
[1750703479219,0.36231578,2293.3,2292.7,1.3026]
[1750703479420,0.36231578,2293.3,2292.8,4.36147132]
[1750703479722,0.36231578,2293.3,2292.4,8.116]
[1750703479920,0.2484,2293.4,2292.5,0.94225]
[1750703480092,2.426,2293.6,2292.5,0.94225]
[1750703480299,2.426,2293.6,2292.8,4.36146673]
[1750703480628,0.2484,2293.7,2292.5,0.94225]
[1750703480779,10.0,2293.6,2293.1,4.36081172]
[1750703481118,1.03398573,2293.6,2293.0,4.36099306]
[1750703481281,0.2484,2293.7,2292.8,1.2618]
[1750703481778,0.2484,2293.7,2293.1,4.36089504]
[1750703481981,0.2484,2293.7,2293.4,4.36021447]
[1750703482182,2.6744,2294.0,2292.8,1.2618]
[1750703482377,0.61923857,2294.0,2293.5,4.36014665]
[1750703482582,0.2484,2294.0,2293.0,4.36109899]
[1750703482781,0.2484,2294.0,2293.4,4.36024821]
[1750703483223,0.2484,2294.0,2293.2,4.36059551]
[1750703483224,1.28238573,2294.4,2293.2,1.8118]
[1750703483383,0.2484,2294.4,2293.2,1.2618]